fUSD/lending_fUSD_20240625
["ID","MTS","AMOUNT","RATE_DAILY","PERIOD"]
[330370268,1719337858498,-500.0,0.00019452,2]
[330370269,1719337858507,-785.12,0.00019452,2]
[330370270,1719337858516,-500.0,0.00019452,2]
[330370271,1719337858524,-617.17,0.00019452,2]
[330370272,1719337858533,-500.0,0.00019452,2]
[330370273,1719337858542,-865.89,0.00019452,2]
[330370274,1719337858555,-1076.26,0.00019452,2]
[330370275,1719337858564,-500.0,0.00019452,2]
[330370276,1719337858573,-1673.1,0.00019452,2]
[330370277,1719337858582,-554.99,0.00019452,2]
[330370278,1719337858591,-1752.72,0.00019452,2]
[330370279,1719337858601,-500.0,0.00019452,2]
[330370280,1719337858610,-500.0,0.00019452,2]
[330370281,1719337858619,-500.0,0.00019452,2]
[330370282,1719337858628,-500.0,0.00019452,2]
[330370283,1719337858637,-1196.42,0.00019452,2]
[330370284,1719337858646,-500.0,0.00019452,2]
[330370285,1719337858656,-500.0,0.00019452,2]
[330370286,1719337858666,-546.0,0.00019452,2]
[330370287,1719337858675,-500.0,0.00019452,2]
[330370288,1719337858685,-500.0,0.00019452,2]
[330370289,1719337858694,-1230.45,0.00019452,2]
[330370290,1719337858703,-500.0,0.00019452,2]
[330370291,1719337858712,-1638.27,0.00019452,2]
[330370292,1719337858721,-500.0,0.00019452,2]
[330370293,1719337858730,-721.81,0.00019452,2]
[330370294,1719337858740,-500.0,0.00019452,2]
[330370295,1719337858749,-916.29,0.00019452,2]
[330370296,1719337858758,-1110.71,0.00019452,2]
[330370297,1719337858767,-1305.49,0.00019452,2]
[330370298,1719337858776,-813.41,0.00019452,2]
[330370299,1719337858786,-500.0,0.00019452,2]
[330370300,1719337858796,-500.0,0.00019452,2]
[330370301,1719337858808,-500.0,0.00019452,2]
[330370302,1719337858818,-500.0,0.00019452,2]
[330370303,1719337858827,-500.0,0.00019452,2]
[330370304,1719337858839,-295.56661992,0.00019452,2]
[330370305,1719337858849,-500.0,0.00019452,2]
[330370306,1719337858859,-500.0,0.00019452,2]
[330370307,1719337858868,-738.2,0.00019452,2]
[330370308,1719337858878,-500.0,0.00019452,2]
[330370309,1719337858887,-629.35,0.00019452,2]
[330370310,1719337858896,-500.0,0.00019452,2]
[330370311,1719337858906,-500.0,0.00019452,2]
[330370312,1719337858915,-2096.31,0.00019452,2]
[330370313,1719337858925,-500.0,0.00019452,2]
[330370314,1719337858934,-2936.53,0.00019452,2]
[330370315,1719337858943,-500.0,0.00019452,2]
[330370316,1719337858953,-500.0,0.00019452,2]
[330370317,1719337858963,-500.0,0.00019452,2]
[330370318,1719337858973,-500.0,0.00019452,2]
[330370319,1719337858983,-500.0,0.00019452,2]
[330370320,1719337858992,-500.0,0.00019452,2]
[330370321,1719337859002,-500.0,0.00019452,2]
[330370322,1719337859012,-500.0,0.00019452,2]
[330370323,1719337859022,-500.0,0.00019452,2]
[330370324,1719337859032,-500.0,0.00019452,2]
[330370325,1719337859041,-500.0,0.00019452,2]
[330370326,1719337859052,-717.21,0.00019452,2]
[330370327,1719337859061,-500.0,0.00019452,2]
[330370328,1719337859070,-500.0,0.00019452,2]
[330370329,1719337859078,-500.0,0.00019452,2]
[330370330,1719337859088,-759.42,0.00019452,2]
[330370331,1719337859097,-500.0,0.00019452,2]
[330370332,1719337859106,-971.03,0.00019452,2]
[330370333,1719337859116,-524.13,0.00019452,2]
[330370334,1719337859125,-500.0,0.00019452,2]
[330370335,1719337859134,-598.1,0.00019452,2]
[330370336,1719337859149,-500.0,0.00019452,2]
[330370337,1719337859159,-500.0,0.00019452,2]
[330370338,1719337859168,-589.92,0.00019452,2]
[330370339,1719337859177,-500.0,0.00019452,2]
[330370340,1719337859187,-525.49056565,0.00019452,2]
[330370341,1719337859196,-675.22,0.00019452,2]
[330370342,1719337859206,-500.0,0.00019452,2]
[330370343,1719337859215,-500.0,0.00019452,2]
[330370344,1719337859224,-905.04,0.00019452,2]
[330370345,1719337859234,-669.2,0.00019452,2]
[330370346,1719337859243,-1247.28,0.00019452,2]
[330370347,1719337859253,-610.3568443,0.00019452,2]
[330370348,1719337859262,-500.0,0.00019452,2]
[330370349,1719337859271,-164.27351244,0.00019452,2]
[330370350,1719337859281,-1109.18,0.00019452,2]
[330370351,1719337859290,-503.89538527,0.00019452,2]
[330370352,1719337859301,-500.0,0.00019452,2]
[330370353,1719337859316,-500.0,0.00019452,2]
[330370354,1719337859326,-500.0,0.00019452,2]
[330370355,1719337859335,-642.01248942,0.00019452,2]
[330370356,1719337859346,-500.0,0.00019452,2]
[330370357,1719337859356,-500.0,0.00019452,2]
[330370358,1719337859366,-500.0,0.00019452,2]
[330370359,1719337859375,-1096.34,0.00019452,2]
[330370360,1719337859386,-1550.19,0.00019452,2]
[330370361,1719337859395,-500.0,0.00019452,2]
[330370362,1719337859404,-500.0,0.00019452,2]
[330370363,1719337859414,-757.11,0.00019452,2]
[330370364,1719337859423,-500.0,0.00019452,2]
[330370365,1719337859432,-500.0,0.00019452,2]
[330370366,1719337859442,-500.0,0.00019452,2]
[330370367,1719337859451,-500.0,0.00019452,2]
[330370368,1719337859461,-500.0,0.00019452,2]
[330370369,1719337859470,-1826.94,0.00019452,2]
[330370370,1719337859480,-500.0,0.00019452,2]
[330370371,1719337859490,-773.72,0.00019452,2]
[330370372,1719337859499,-500.0,0.00019452,2]
[330370373,1719337859509,-568.6547243,0.00019452,2]
[330370374,1719337859518,-500.0,0.00019452,2]
[330370375,1719337859528,-338.97114891,0.00019452,2]
[330370376,1719337859537,-1728.25,0.00019452,2]
[330370377,1719337859547,-396.54394975,0.00019452,2]
[330370378,1719337859560,-973.7,0.00019452,2]
[330370379,1719337859569,-500.0,0.00019452,2]
[330370380,1719337859579,-773.97,0.00019452,2]
[330370381,1719337859588,-1154.02,0.00019452,2]
[330370382,1719337859598,-1784.58,0.00019452,2]
[330370383,1719337859608,-658.68,0.00019452,2]
[330370384,1719337859617,-525.47,0.00019452,2]
[330370385,1719337859628,-500.0,0.00019452,2]
[330370386,1719337859637,-894.86,0.00019452,2]
[330370387,1719337859647,-500.0,0.00019452,2]
[330370388,1719337859656,-1106.26,0.00019452,2]
[330370389,1719337859665,-500.0,0.00019452,2]
[330370390,1719337859674,-285.05418016,0.00019452,2]
[330370391,1719337859683,-556.82,0.00019452,2]
[330370392,1719337859693,-495.58866173,0.00019452,2]
[330370393,1719337859702,-1088.59,0.00019452,2]
[330370394,1719337859711,-500.0,0.00019452,2]
[330370395,1719337859720,-500.0,0.00019452,2]
[330370396,1719337859729,-500.0,0.00019452,2]
[330370397,1719337859739,-1061.87,0.00019452,2]
[330370398,1719337859748,-1519.41,0.00019452,2]
[330370399,1719337859757,-1886.29,0.00019452,2]
[330370400,1719337859766,-671.23,0.00019452,2]
[330370401,1719337859776,-842.01,0.00019452,2]
[330370402,1719337859784,-500.0,0.00019452,2]
[330370403,1719337859793,-500.0,0.00019452,2]
[330370404,1719337859803,-848.32,0.00019452,2]
[330370405,1719337859812,-500.0,0.00019452,2]
[330370406,1719337859821,-571.84,0.00019452,2]
[330370407,1719337859830,-547.07,0.00019452,2]
[330370408,1719337859841,-1275.37,0.00019452,2]
[330370409,1719337859851,-708.32,0.00019452,2]
[330370410,1719337859860,-500.0,0.00019452,2]
[330370411,1719337859868,-545.35,0.00019452,2]
[330370412,1719337859878,-323.70942593,0.00019452,2]
[330370413,1719337859886,-500.0,0.00019452,2]
[330370414,1719337859895,-1199.18,0.00019452,2]
[330370415,1719337859904,-500.0,0.00019452,2]
[330370416,1719337859914,-500.0,0.00019452,2]
[330370417,1719337859923,-500.0,0.00019452,2]
[330370418,1719337859932,-2554.0,0.00019452,2]
[330370419,1719337859941,-500.0,0.00019452,2]
[330370420,1719337859951,-500.0,0.00019452,2]
[330370421,1719337859960,-500.0,0.00019452,2]
[330370422,1719337859969,-500.0,0.00019452,2]
[330370423,1719337859978,-500.0,0.00019452,2]
[330370424,1719337859987,-896.63,0.00019452,2]
[330370425,1719337859996,-500.0,0.00019452,2]
[330370426,1719337860005,-1510.6,0.00019452,2]
[330370427,1719337860015,-899.64,0.00019452,2]
[330370428,1719337860024,-500.0,0.00019452,2]
[330370429,1719337860033,-500.0,0.00019452,2]
[330370430,1719337860043,-678.52,0.00019452,2]
[330370431,1719337860054,-2297.51,0.00019452,2]
[330370432,1719337860065,-500.0,0.00019452,2]
[330370433,1719337860074,-500.0,0.00019452,2]
[330370434,1719337860085,-500.0,0.00019452,2]
[330370435,1719337860095,-500.0,0.00019452,2]
[330370436,1719337860112,-706.8,0.00019452,2]
[330370437,1719337860132,-500.0,0.00019452,2]
[330370438,1719337860154,-500.0,0.00019452,2]
[330370439,1719337860175,-500.0,0.00019452,2]
[330370440,1719337860197,-500.0,0.00019452,2]
[330370441,1719337860219,-500.0,0.00019452,2]
[330370442,1719337860241,-500.0,0.00019452,2]
[330370443,1719337860264,-2864.14,0.00019452,2]
[330370444,1719337860286,-500.0,0.00019452,2]
[330370445,1719337860311,-500.0,0.00019452,2]
[330370446,1719337860333,-500.0,0.00019452,2]
[330370447,1719337860346,-557.18446666,0.00019452,2]
[330370448,1719337860355,-767.35,0.00019452,2]
[330370449,1719337860365,-500.0,0.00019452,2]
[330370450,1719337860374,-1219.8,0.00019452,2]
[330370451,1719337860383,-817.0,0.00019452,2]
[330370452,1719337860393,-602.68,0.00019452,2]
[330370453,1719337860402,-500.0,0.00019452,2]
[330370454,1719337860411,-750.73,0.00019452,2]
[330370455,1719337860421,-500.0,0.00019452,2]
[330370456,1719337860430,-983.23,0.00019452,2]
[330370457,1719337860439,-2190.09,0.00019452,2]
[330370458,1719337860450,-500.0,0.00019452,2]
[330370459,1719337860640,-518.52359353,0.00019452,2]
[330370460,1719337860662,-1053.59,0.00019452,2]
[330370461,1719337860671,-1755.84,0.00019452,2]
[330370462,1719337860680,-502.66,0.00019452,2]
[330370463,1719337860689,-811.39,0.00019452,2]
[330370464,1719337860698,-500.0,0.00019452,2]
[330370465,1719337860707,-500.0,0.00019452,2]
[330370466,1719337860716,-2037.18,0.00019452,2]
[330370467,1719337860725,-1534.29,0.00019452,2]
[330370468,1719337860735,-1075.29,0.00019452,2]
[330370469,1719337860744,-500.0,0.00019452,2]
[330370470,1719337860753,-721.67,0.00019452,2]
[330370471,1719337860762,-500.0,0.00019452,2]
[330370472,1719337860771,-1408.46,0.00019452,2]
[330370473,1719337860780,-545.9,0.00019452,2]
[330370474,1719337860789,-881.26,0.00019452,2]
[330370475,1719337860798,-1154.57,0.00019452,2]
[330370476,1719337860809,-501.82362944,0.00019452,2]
[330370477,1719337860818,-500.0,0.00019452,2]
[330370478,1719337860827,-1299.57,0.00019452,2]
[330370479,1719337860835,-2576.08,0.00019452,2]
[330370480,1719337860844,-500.0,0.00019452,2]
[330370481,1719337860855,-561.35,0.00019452,2]
[330370482,1719337860864,-764.04,0.00019452,2]
[330370483,1719337860875,-500.0,0.00019452,2]
[330370484,1719337860884,-502.10678777,0.00019452,2]
[330370485,1719337860893,-500.0,0.00019452,2]
[330370486,1719337860902,-500.0,0.00019452,2]
[330370487,1719337860911,-500.0,0.00019452,2]
[330370488,1719337860921,-500.0,0.00019452,2]
[330370489,1719337860930,-623.53785382,0.00019452,2]
[330370490,1719337860939,-500.0,0.00019452,2]
[330370491,1719337860948,-500.0,0.00019452,2]
[330370492,1719337860957,-1230.16,0.00019452,2]
[330370493,1719337860967,-371.20524497,0.00019452,2]
[330370494,1719337860976,-500.0,0.00019452,2]
[330370495,1719337860985,-500.0,0.00019452,2]
[330370496,1719337860994,-500.0,0.00019452,2]
[330370497,1719337861003,-293.08563232,0.00019452,2]
[330370498,1719337861012,-1956.39,0.00019452,2]
[330370499,1719337861021,-947.68,0.00019452,2]
[330370500,1719337861031,-654.42,0.00019452,2]
[330370501,1719337861041,-375.3506532,0.00019452,2]
[330370502,1719337861051,-2524.99,0.00019452,2]
[330370503,1719337861062,-947.4,0.00019452,2]
[330370504,1719337861071,-1606.65,0.00019452,2]
[330370505,1719337861080,-500.0,0.00019452,2]
[330370506,1719337861089,-500.0,0.00019452,2]
[330370507,1719337861099,-1554.23,0.00019452,2]
[330370508,1719337861107,-500.0,0.00019452,2]
[330370509,1719337861117,-754.05,0.00019452,2]
[330370510,1719337861126,-526.12,0.00019452,2]
[330370511,1719337861136,-553.36,0.00019452,2]
[330370512,1719337861149,-500.0,0.00019452,2]
[330370513,1719337861158,-500.0,0.00019452,2]
[330370514,1719337861167,-500.0,0.00019452,2]
[330370515,1719337861176,-500.0,0.00019452,2]
[330370516,1719337861186,-500.0,0.00019452,2]
[330370517,1719337861194,-500.0,0.00019452,2]
[330370518,1719337861203,-500.0,0.00019452,2]
[330370519,1719337861212,-500.0,0.00019452,2]
[330370520,1719337861222,-2884.08,0.00019452,2]
[330370521,1719337861232,-1472.44,0.00019452,2]
[330370522,1719337861242,-852.6,0.00019452,2]
[330370523,1719337861251,-500.0,0.00019452,2]
[330370524,1719337861260,-500.0,0.00019452,2]
[330370525,1719337861269,-764.29,0.00019452,2]
[330370526,1719337861278,-1169.5,0.00019452,2]
[330370527,1719337861288,-500.0,0.00019452,2]
[330370528,1719337861297,-500.0,0.00019452,2]
[330370529,1719337861309,-1362.64,0.00019452,2]
[330370530,1719337861321,-500.0,0.00019452,2]
[330370531,1719337861331,-581.63,0.00019452,2]
[330370532,1719337861340,-500.0,0.00019452,2]
[330370533,1719337861350,-686.07,0.00019452,2]
[330370534,1719337861359,-508.41,0.00019452,2]
[330370535,1719337861368,-500.0,0.00019452,2]
[330370536,1719337861377,-500.0,0.00019452,2]
[330370537,1719337861387,-666.55,0.00019452,2]
[330370538,1719337861396,-2932.51,0.00019452,2]
[330370539,1719337861406,-753.97,0.00019452,2]
[330370540,1719337861415,-500.0,0.00019452,2]
[330370541,1719337861425,-666.4,0.00019452,2]
[330370542,1719337861435,-500.0,0.00019452,2]
[330370543,1719337861444,-359.28734846,0.00019452,2]
[330370544,1719337861454,-500.0,0.00019452,2]
[330370545,1719337861463,-500.0,0.00019452,2]
[330370546,1719337861472,-3770.43,0.00019452,2]
[330370547,1719337861481,-500.0,0.00019452,2]
[330370548,1719337861490,-500.0,0.00019452,2]
[330370549,1719337861499,-806.51,0.00019452,2]
[330370550,1719337861508,-500.0,0.00019452,2]
[330370551,1719337861517,-1414.23,0.00019452,2]
[330370552,1719337861526,-199.19050933,0.00019452,2]
[330370553,1719337861535,-836.39,0.00019452,2]
[330370554,1719337861545,-524.09656173,0.00019452,2]
[330370555,1719337861556,-500.0,0.00019452,2]
[330370556,1719337861566,-8800.46,0.00019452,2]
[330370557,1719337861575,-500.0,0.00019452,2]
[330370558,1719337861585,-2037.79,0.00019452,2]
[330370559,1719337861595,-500.0,0.00019452,2]
[330370560,1719337861605,-1917.68,0.00019452,2]
[330370561,1719337861614,-735.13,0.00019452,2]
[330370562,1719337861624,-500.0,0.00019452,2]
[330370563,1719337861633,-500.0,0.00019452,2]
[330370564,1719337861644,-500.0,0.00019452,2]
[330370565,1719337861653,-500.0,0.00019452,2]
[330370566,1719337861664,-2255.57,0.00019452,2]
[330370567,1719337861674,-500.0,0.00019452,2]
[330370568,1719337861684,-500.0,0.00019452,2]
[330370569,1719337861694,-552.21664092,0.00019452,2]
[330370570,1719337861705,-500.0,0.00019452,2]
[330370571,1719337861716,-879.5,0.00019452,2]
[330370572,1719337861726,-500.0,0.00019452,2]
[330370573,1719337861736,-828.4,0.00019452,2]
[330370574,1719337861747,-3037.31,0.00019452,2]
[330370575,1719337861757,-2609.54,0.00019452,2]
[330370576,1719337861766,-500.0,0.00019452,2]
[330370577,1719337861776,-500.0,0.00019452,2]
[330370578,1719337861786,-958.33,0.00019452,2]
[330370579,1719337861795,-500.0,0.00019452,2]
[330370580,1719337861806,-500.0,0.00019452,2]
[330370581,1719337861815,-500.0,0.00019452,2]
[330370582,1719337861825,-500.0,0.00019452,2]
[330370583,1719337861835,-500.0,0.00019452,2]
[330370584,1719337861844,-2824.72,0.00019452,2]
[330370585,1719337861853,-1143.56,0.00019452,2]
[330370586,1719337861863,-500.0,0.00019452,2]
[330370587,1719337861872,-803.49,0.00019452,2]
[330370588,1719337861882,-500.0,0.00019452,2]
[330370589,1719337861891,-1534.53,0.00019452,2]
[330370590,1719337861901,-673.18,0.00019452,2]
[330370591,1719337861910,-3376.96,0.00019452,2]
[330370592,1719337861920,-500.0,0.00019452,2]
[330370593,1719337861930,-620.54,0.00019452,2]
[330370594,1719337861939,-500.0,0.00019452,2]
[330370595,1719337861948,-539.44934928,0.00019452,2]
[330370596,1719337861957,-500.0,0.00019452,2]
[330370597,1719337861966,-3353.42,0.00019452,2]
[330370598,1719337861975,-3376.21,0.00019452,2]
[330370599,1719337861985,-544.84299535,0.00019452,2]
[330370600,1719337861994,-500.0,0.00019452,2]
[330370601,1719337862003,-500.0,0.00019452,2]
[330370602,1719337862012,-501.21,0.00019452,2]
[330370603,1719337862021,-500.0,0.00019452,2]
[330370604,1719337862031,-500.0,0.00019452,2]
[330370605,1719337862040,-500.0,0.00019452,2]
[330370606,1719337862050,-532.64,0.00019452,2]
[330370607,1719337862061,-500.0,0.00019452,2]
[330370608,1719337862071,-500.0,0.00019452,2]
[330370609,1719337862080,-1445.77,0.00019452,2]
[330370610,1719337862089,-500.0,0.00019452,2]
[330370611,1719337862099,-500.0,0.00019452,2]
[330370612,1719337862107,-2523.52,0.00019452,2]
[330370613,1719337862116,-500.0,0.00019452,2]
[330370614,1719337862126,-1776.47,0.00019452,2]
[330370615,1719337862135,-584.05,0.00019452,2]
[330370616,1719337862149,-500.0,0.00019452,2]
[330370617,1719337862158,-2900.66,0.00019452,2]
[330370618,1719337862168,-500.0,0.00019452,2]
[330370619,1719337862177,-2238.06,0.00019452,2]
[330370620,1719337862188,-155.60015182,0.00019452,2]
[330370621,1719337862197,-3124.53,0.00019452,2]
[330370622,1719337862206,-500.0,0.00019452,2]
[330370623,1719337862215,-700.23,0.00019452,2]
[330370624,1719337862227,-1733.73,0.00019452,2]
[330370625,1719337862236,-762.22,0.00019452,2]
[330370626,1719337862245,-500.0,0.00019452,2]
[330370627,1719337862254,-2060.1,0.00019452,2]
[330370628,1719337862264,-2923.75,0.00019452,2]
[330370629,1719337862273,-1916.65,0.00019452,2]
[330370630,1719337862282,-500.0,0.00019452,2]
[330370631,1719337862291,-813.4,0.00019452,2]
[330370632,1719337862300,-500.0,0.00019452,2]
[330370633,1719337862311,-579.87,0.00019452,2]
[330370634,1719337862321,-1319.57,0.00019452,2]
[330370635,1719337862331,-501.54950132,0.00019452,2]
[330370636,1719337862342,-500.0,0.00019452,2]
[330370637,1719337862353,-594.09,0.00019452,2]
[330370638,1719337862362,-500.0,0.00019452,2]
[330370639,1719337862372,-500.0,0.00019452,2]
[330370640,1719337862381,-500.0,0.00019452,2]
[330370641,1719337862390,-500.0,0.00019452,2]
[330370642,1719337862399,-473.17309356,0.00019452,2]
[330370643,1719337862409,-1466.86,0.00019452,2]
[330370644,1719337862420,-805.41,0.00019452,2]
[330370645,1719337862429,-747.48,0.00019452,2]
[330370646,1719337862438,-500.0,0.00019452,2]
[330370647,1719337862447,-823.04,0.00019452,2]
[330370648,1719337862457,-1175.45,0.00019452,2]
[330370649,1719337862466,-2342.23,0.00019452,2]
[330370650,1719337862475,-500.0,0.00019452,2]
[330370651,1719337862485,-1142.76,0.00019452,2]
[330370652,1719337862494,-500.0,0.00019452,2]
[330370653,1719337862503,-500.0,0.00019452,2]
[330370654,1719337862513,-500.0,0.00019452,2]
[330370655,1719337862523,-500.0,0.00019452,2]
[330370656,1719337862533,-4082.89,0.00019452,2]
[330370657,1719337862542,-1742.95,0.00019452,2]
[330370658,1719337862552,-571.02481087,0.00019452,2]
[330370659,1719337862561,-500.0,0.00019452,2]
[330370660,1719337862570,-2181.34,0.00019452,2]
[330370661,1719337862579,-1689.47,0.00019452,2]
[330370662,1719337862589,-2213.32,0.00019452,2]
[330370663,1719337862599,-500.0,0.00019452,2]
[330370664,1719337862608,-500.0,0.00019452,2]
[330370665,1719337862617,-868.48,0.00019452,2]
[330370666,1719337862627,-585.34,0.00019452,2]
[330370667,1719337862635,-500.0,0.00019452,2]
[330370668,1719337862645,-500.0,0.00019452,2]
[330370669,1719337862654,-1800.31,0.00019452,2]
[330370670,1719337862663,-500.0,0.00019452,2]
[330370671,1719337862673,-500.0,0.00019452,2]
[330370672,1719337862682,-500.0,0.00019452,2]
[330370673,1719337862691,-500.0,0.00019452,2]
[330370674,1719337862699,-3480.54,0.00019452,2]
[330370675,1719337862709,-4580.93,0.00019452,2]
[330370676,1719337862718,-500.0,0.00019452,2]
[330370677,1719337862727,-500.0,0.00019452,2]
[330370678,1719337862736,-500.0,0.00019452,2]
[330370679,1719337862745,-3101.99,0.00019452,2]
[330370680,1719337862755,-2613.05,0.00019452,2]
[330370681,1719337862764,-1971.62,0.00019452,2]
[330370682,1719337862773,-500.0,0.00019452,2]
[330370683,1719337862782,-1370.76,0.00019452,2]
[330370684,1719337862792,-1886.11,0.00019452,2]
[330370685,1719337862801,-500.0,0.00019452,2]
[330370686,1719337862811,-704.37,0.00019452,2]
[330370687,1719337862821,-500.0,0.00019452,2]
[330370688,1719337862830,-500.0,0.00019452,2]
[330370689,1719337862840,-500.0,0.00019452,2]
[330370690,1719337862850,-500.0,0.00019452,2]
[330370691,1719337862859,-500.0,0.00019452,2]
[330370692,1719337862869,-4341.89,0.00019452,2]
[330370693,1719337862879,-1807.06,0.00019452,2]
[330370694,1719337862889,-500.0,0.00019452,2]
[330370695,1719337862898,-1880.49,0.00019452,2]
[330370696,1719337862908,-500.0,0.00019452,2]
[330370697,1719337862918,-2231.21,0.00019452,2]
[330370698,1719337862928,-1338.15,0.00019452,2]
[330370699,1719337862937,-500.0,0.00019452,2]
[330370700,1719337862947,-2602.84,0.00019452,2]
[330370701,1719337862956,-619.17,0.00019452,2]
[330370703,1719337862965,-1282.5,0.00019452,2]
[330370704,1719337862975,-500.0,0.00019452,2]
[330370705,1719337862983,-2445.36,0.00019452,2]
[330370706,1719337862992,-916.11,0.00019452,2]
[330370707,1719337863001,-500.0,0.00019452,2]
[330370708,1719337863010,-500.0,0.00019452,2]
[330370709,1719337863019,-500.0,0.00019452,2]
[330370710,1719337863028,-800.62,0.00019452,2]
[330370711,1719337863038,-500.0,0.00019452,2]
[330370712,1719337863048,-883.29,0.00019452,2]
[330370713,1719337863057,-4820.28,0.00019452,2]
[330370714,1719337863066,-529.48,0.00019452,2]
[330370715,1719337863076,-500.0,0.00019452,2]
[330370716,1719337863085,-1772.0,0.00019452,2]
[330370717,1719337863094,-1217.56,0.00019452,2]
[330370718,1719337863103,-2640.7,0.00019452,2]
[330370719,1719337863113,-500.0,0.00019452,2]
[330370720,1719337863122,-502.00459133,0.00019452,2]
[330370721,1719337863131,-500.0,0.00019452,2]
[330370722,1719337863145,-1941.76,0.00019452,2]
[330370723,1719337863155,-562.37952895,0.00019452,2]
[330370724,1719337863164,-500.0,0.00019452,2]
[330370725,1719337863173,-500.0,0.00019452,2]
[330370726,1719337863185,-500.0,0.00019452,2]
[330370727,1719337863194,-1336.39,0.00019452,2]
[330370728,1719337863204,-500.0,0.00019452,2]
[330370729,1719337863213,-500.0,0.00019452,2]
[330370730,1719337863223,-500.0,0.00019452,2]
[330370731,1719337863232,-1027.49,0.00019452,2]
[330370732,1719337863242,-500.0,0.00019452,2]
[330370733,1719337863252,-1409.22,0.00019452,2]
[330370734,1719337863261,-1417.51,0.00019452,2]
[330370735,1719337863270,-387.06943077,0.00019452,2]
[330370736,1719337863348,-205.61056923,0.00019452,2]
[330370737,1719337863358,-814.4,0.00019452,2]
[330370738,1719337863368,-500.0,0.00019452,2]
[330370739,1719337863378,-839.77,0.00019452,2]
[330370740,1719337863387,-965.36,0.00019452,2]
[330370741,1719337863397,-500.0,0.00019452,2]
[330370742,1719337863407,-500.0,0.00019452,2]
[330370743,1719337863417,-500.0,0.00019452,2]
[330370744,1719337863427,-1173.93,0.00019452,2]
[330370745,1719337863438,-272.85064263,0.00019452,2]
[330370746,1719337863452,-700.26935737,0.00019452,2]
[330370747,1719337863461,-2021.58,0.00019452,2]
[330370748,1719337863471,-951.86,0.00019452,2]
[330370749,1719337863480,-835.47,0.00019452,2]
[330370750,1719337863489,-500.0,0.00019452,2]
[330370751,1719337863498,-500.0,0.00019452,2]
[330370752,1719337863508,-3257.55,0.00019452,2]
[330370753,1719337863695,-2073.78,0.00019452,2]
[330370754,1719337863705,-500.0,0.00019452,2]
[330370755,1719337863714,-2007.39,0.00019452,2]
[330370756,1719337863724,-500.0,0.00019452,2]
[330370757,1719337863733,-500.0,0.00019452,2]
[330370758,1719337863743,-500.0,0.00019452,2]
[330370759,1719337863752,-500.0,0.00019452,2]
[330370760,1719337863761,-567.86,0.00019452,2]
[330370761,1719337863769,-500.0,0.00019452,2]
[330370762,1719337863779,-294.87000928,0.00019452,2]
[330370763,1719337863788,-500.0,0.00019452,2]
[330370764,1719337863797,-90.54031215,0.00019452,2]
[330370765,1719337863811,-473.26955168,0.00019452,2]
[330370766,1719337863822,-393.91013617,0.00019452,2]
[330370767,1719337863831,-500.0,0.00019452,2]
[330370768,1719337863840,-446.08986383,0.00019452,2]